bitfinex-derivatives/quotes_BTCF0:USTF0_20251220
["timestamp","ask_amount","ask_price","bid_price","bid_amount"]
[1766245773014,0.02616432,88214.0,88193.0,0.0113437]
[1766245773220,0.02616432,88213.0,88193.0,0.0113437]
[1766245773520,0.0113411,88215.0,88193.0,0.0113437]
[1766245773711,0.02616651,88214.0,88193.0,0.0113437]
[1766245773909,0.02616651,88213.0,88193.0,0.0113437]
[1766245774204,0.0113411,88215.0,88193.0,0.0113437]
[1766245774403,0.02616791,88214.0,88193.0,0.0113437]
[1766245774619,0.02616791,88213.0,88193.0,0.0113437]
[1766245774820,0.0113411,88215.0,88193.0,0.0113437]
[1766245775122,0.05452812,88214.0,88193.0,0.0113437]
[1766245775418,0.02616812,88213.0,88193.0,0.0113437]
[1766245775810,0.02616812,88213.0,88196.0,0.0113434]
[1766245776619,0.02616812,88213.0,88194.0,0.0113437]
[1766245776827,0.02836,88230.0,88212.0,0.0113413]
[1766245777014,0.0113395,88227.0,88207.0,0.00612]
[1766245777720,0.0113395,88227.0,88208.0,0.00017005]
[1766245785630,0.01134,88223.0,88208.0,0.00017005]
[1766245795429,0.22866901,88220.0,88208.0,0.00017005]
[1766245798034,0.24000941,88220.0,88208.0,0.00017005]
[1766245798329,0.0113409,88216.0,88204.0,0.01143]
[1766245799134,0.0113409,88216.0,88201.0,0.02836]
[1766245799433,0.0113409,88216.0,88201.0,0.02853005]
[1766245802226,0.00017005,88219.0,88201.0,0.02853005]
[1766245804234,0.00017005,88219.0,88202.0,0.0113426]
[1766245810634,0.01151055,88219.0,88201.0,0.02853005]
[1766245812648,0.0113409,88216.0,88201.0,0.02853005]
[1766245813746,0.011341,88215.0,88201.0,0.02853005]
[1766245815337,0.01151055,88219.0,88201.0,0.02853005]
[1766245820352,0.0113409,88216.0,88201.0,0.02853005]
[1766245839065,0.00017005,88219.0,88201.0,0.02853005]
[1766245841561,1.44644,88229.0,88201.0,0.02853005]
[1766245841862,0.02590785,88228.0,88201.0,0.02853005]
[1766245842063,0.02590785,88227.0,88201.0,0.02853005]
[1766245842263,0.02590785,88226.0,88201.0,0.02853005]
[1766245842464,0.02590785,88225.0,88201.0,0.02853005]
[1766245842654,0.02590785,88224.0,88201.0,0.02853005]
[1766245842855,0.02590785,88223.0,88201.0,0.02853005]
[1766245843168,0.0113394,88228.0,88205.0,0.0113422]
[1766245843463,0.02590454,88227.0,88208.0,0.0113418]
[1766245843665,0.02590454,88226.0,88208.0,0.0113418]
[1766245843856,0.02590454,88225.0,88208.0,0.0113418]
[1766245844058,0.0113394,88228.0,88208.0,0.0113418]
[1766245844261,0.02590454,88227.0,88208.0,0.0113418]
[1766245844461,0.02590454,88226.0,88208.0,0.0113418]
[1766245844661,0.02590454,88225.0,88208.0,0.0113418]
[1766245844862,0.0113394,88228.0,88208.0,0.0113418]
[1766245845064,0.02590265,88227.0,88208.0,0.0113418]
[1766245845265,0.02590265,88226.0,88208.0,0.0113418]
[1766245845465,0.02590265,88225.0,88208.0,0.0113418]
[1766245845664,1.44644,88229.0,88211.0,0.0113415]
[1766245845964,0.02590171,88228.0,88211.0,0.0113415]
[1766245846167,0.02590171,88227.0,88211.0,0.0113415]
[1766245846356,1.44644,88229.0,88211.0,0.0113415]
[1766245846660,0.02589928,88228.0,88211.0,0.0113415]
[1766245846855,0.02589928,88227.0,88211.0,0.0113415]
[1766245847169,0.0113355,88258.0,88211.0,0.0113415]
[1766245847170,0.011336,88255.0,88217.0,0.45743948]
[1766245847462,0.24005504,88260.0,88235.0,0.0113383]
[1766245847656,0.02565949,88259.0,88236.0,0.02836]
[1766245847862,0.22871974,88250.0,88236.0,0.02836]
[1766245848261,0.0113359,88255.0,88236.0,0.02836]
[1766245848468,0.22871974,88250.0,88236.0,0.02836]
[1766245849166,0.25707974,88260.0,88234.0,0.02836]
[1766245849167,0.0113372,88245.0,88234.0,0.02836]
[1766245849463,0.22871974,88244.0,88234.0,0.02836]
[1766245849768,0.0113367,88249.0,88234.0,0.02836]
[1766245854075,0.02836,88248.0,88234.0,0.02836]
[1766245861980,0.0113369,88247.0,88234.0,0.02836]
[1766245862187,0.0113377,88241.0,88227.0,0.00017005]
[1766245862384,0.0113379,88239.0,88227.0,0.00017005]
[1766245862582,0.0396979,88239.0,88227.0,0.00017005]
[1766245871587,0.0113383,88236.0,88227.0,0.00017005]
[1766245871894,0.0113383,88236.0,88227.0,5e-08]
[1766245873084,0.0396983,88236.0,88227.0,5e-08]
[1766245879594,0.0113388,88233.0,88227.0,5e-08]
[1766245879795,0.0113392,88229.0,88227.0,5e-08]
[1766245880002,0.0113391,88230.0,88227.0,5e-08]
[1766245881901,0.02836,88231.0,88206.0,0.06104704]
[1766245882092,0.0113406,88219.0,88207.0,0.02836]
[1766245882288,0.01134,88223.0,88207.0,0.02836]
[1766245882494,0.02836,88225.0,88207.0,0.02836]
[1766245882894,0.02853005,88225.0,88207.0,0.02853005]
[1766245887605,0.0113399,88224.0,88207.0,0.02853005]
[1766245887803,0.0113403,88221.0,88207.0,0.02853005]
[1766245888007,0.03986985,88225.0,88207.0,0.02853005]
[1766245888208,0.0113401,88222.0,88207.0,0.02853005]
[1766245895513,0.0113405,88219.0,88207.0,0.02853005]
[1766245895810,0.0113405,88219.0,88207.0,0.00017005]
[1766245896122,0.0113405,88219.0,88207.0,0.02853005]
[1766245897608,0.0113409,88216.0,88207.0,0.00017005]
[1766245898711,0.0113403,88221.0,88207.0,0.00017005]
[1766245898912,0.0113406,88218.0,88207.0,0.00017005]
[1766245904915,0.0113402,88222.0,88207.0,0.00017005]
[1766245907311,0.02853005,88225.0,88207.0,0.00017005]
[1766245907516,0.0113403,88221.0,88207.0,0.00017005]
[1766245908317,0.02853005,88225.0,88207.0,0.00017005]
[1766245909016,0.22869239,88220.0,88207.0,5e-08]
[1766245910325,0.0113412,88214.0,88207.0,5e-08]
[1766245910523,0.22869239,88220.0,88207.0,5e-08]
[1766245912225,0.0113414,88212.0,88207.0,5e-08]
[1766245921328,0.011341,88216.0,88207.0,5e-08]
[1766245922139,0.0113414,88212.0,88207.0,5e-08]
[1766245923835,0.02836,88218.0,88207.0,5e-08]
[1766245925332,0.011341,88215.0,88207.0,5e-08]
[1766245938851,0.0113414,88212.0,88207.0,5e-08]
[1766245956859,0.011341,88216.0,88207.0,5e-08]
[1766245959263,0.02836,88218.0,88207.0,5e-08]
[1766245964068,0.02836,88217.0,88207.0,5e-08]
[1766245964768,0.0113409,88216.0,88207.0,5e-08]
[1766245967769,0.02836,88217.0,88207.0,5e-08]
[1766245969773,0.0397008,88217.0,88207.0,5e-08]
[1766245979391,0.0113411,88214.0,88207.0,5e-08]
[1766245985399,0.02836,88217.0,88207.0,5e-08]
[1766245994404,0.02836,88217.0,88199.0,0.00868005]
[1766245995407,0.02836,88217.0,88199.0,0.0088501]
[1766245997609,0.0113409,88216.0,88199.0,0.0088501]
[1766245999306,0.02836,88217.0,88199.0,0.0088501]
[1766245999806,0.02836,88217.0,88202.0,0.06104704]
[1766246003610,0.02836,88217.0,88201.0,0.06104704]
[1766246003810,0.02836,88217.0,88202.0,0.06104704]
[1766246018024,0.02836,88217.0,88202.0,0.07238964]
[1766246032018,0.02836,88217.0,88206.0,0.0113421]
[1766246034326,0.00017005,88225.0,88203.0,0.06104704]
[1766246034530,0.0249035,88224.0,88208.0,0.0113418]
[1766246034730,0.0249035,88223.0,88208.0,0.0113418]
[1766246035030,0.00017005,88225.0,88204.0,0.0113423]
[1766246035232,0.02490368,88224.0,88204.0,0.0113423]
[1766246035430,0.02490368,88223.0,88204.0,0.0113423]
[1766246035732,0.00017005,88225.0,88204.0,0.0113423]
[1766246036030,0.02490309,88224.0,88204.0,0.0113423]
[1766246036230,0.02490309,88223.0,88204.0,0.0113423]
[1766246036531,0.00017005,88225.0,88204.0,0.0113423]
[1766246036731,0.02490261,88224.0,88204.0,0.0113423]
[1766246036928,0.02490261,88223.0,88204.0,0.0113423]
[1766246037124,0.00017005,88225.0,88204.0,0.0113423]
[1766246037325,0.02490261,88224.0,88207.0,0.011342]
[1766246037526,0.02490261,88223.0,88207.0,0.011342]
[1766246037726,0.00017005,88225.0,88207.0,0.011342]
[1766246037931,0.02490206,88224.0,88207.0,0.011342]
[1766246038132,0.02490206,88223.0,88207.0,0.011342]
[1766246038431,0.00017005,88225.0,88207.0,0.011342]
[1766246038633,0.02490164,88224.0,88207.0,0.011342]
[1766246038830,0.02490164,88223.0,88207.0,0.011342]
[1766246039127,0.00017005,88225.0,88207.0,0.011342]
[1766246039328,0.02490164,88224.0,88207.0,0.011342]
[1766246039528,0.02490164,88223.0,88207.0,0.011342]
[1766246039723,0.00017005,88225.0,88207.0,0.011342]
[1766246039924,0.02490133,88224.0,88207.0,0.011342]
[1766246040124,0.02490133,88223.0,88207.0,0.011342]
[1766246040331,0.00017005,88225.0,88207.0,0.011342]
[1766246040645,0.02490133,88224.0,88207.0,0.011342]
[1766246040825,0.02490133,88223.0,88207.0,0.011342]
[1766246041027,0.00017005,88225.0,88206.0,0.0172]
[1766246041340,0.22867322,88220.0,88206.0,0.0172]
[1766246042430,0.22867322,88220.0,88207.0,0.011342]
[1766246042633,0.02836,88222.0,88207.0,0.011342]
[1766246042836,0.02832,88222.0,88207.0,0.011342]
[1766246044830,0.02832,88222.0,88213.0,0.0113412]
[1766246045226,0.02836,88233.0,88219.0,0.0113404]
[1766246045424,0.02836,88233.0,88218.0,0.0113406]
[1766246045425,0.02489565,88232.0,88218.0,0.0113406]
[1766246045628,0.22867631,88230.0,88218.0,0.0113406]
[1766246046423,0.02853005,88233.0,88218.0,0.0113406]
[1766246047038,0.22867631,88230.0,88218.0,0.0113406]
[1766246047340,0.02853005,88233.0,88218.0,0.0113406]
[1766246047733,0.00017005,88233.0,88218.0,0.0113406]
[1766246055737,0.02836,88241.0,88215.0,0.00017005]
[1766246055738,0.02836,88241.0,88220.0,0.22867631]
[1766246055935,0.02836,88241.0,88230.0,0.22867631]
[1766246056239,0.02836,88241.0,88223.0,0.02836]
[1766246056438,0.02836,88241.0,88230.0,0.22867631]
[1766246057838,0.02836,88241.0,88224.0,0.0113398]
[1766246059244,0.02836,88241.0,88227.0,0.0113394]
[1766246064055,0.02836,88241.0,88230.0,0.22867631]
[1766246067059,0.02836,88241.0,88227.0,0.0113394]
[1766246070665,0.02836,88241.0,88223.0,0.0396999]
[1766246073263,0.02836,88241.0,88226.0,0.0113396]
[1766246073869,0.02836,88241.0,88223.0,0.02836]
[1766246074258,0.22867631,88240.0,88223.0,0.02836]
[1766246076164,0.011338,88239.0,88223.0,0.02836]
[1766246076469,0.22867631,88240.0,88215.0,0.06121709]
[1766246076668,0.22867631,88240.0,88216.0,0.02836]
[1766246077163,0.0113383,88236.0,88216.0,0.02836]
[1766246077762,0.0113383,88236.0,88220.0,0.22867631]
[1766246078668,0.24001421,88240.0,88220.0,0.22867631]
[1766246079267,0.22867631,88240.0,88220.0,0.22867631]
[1766246079671,0.2285885,88240.0,88220.0,0.2285885]
[1766246082976,0.2285885,88240.0,88221.0,0.0113402]
[1766246083176,0.2285885,88240.0,88222.0,0.02836]
[1766246083577,0.2285885,88240.0,88223.0,0.0113399]
[1766246086263,0.2285885,88240.0,88222.0,0.02836]
[1766246094672,0.011338,88239.0,88222.0,0.02836]
[1766246100387,0.2285885,88240.0,88222.0,0.02836]
[1766246101487,0.02836,88241.0,88222.0,0.02836]
[1766246101679,0.02485473,88240.0,88222.0,0.02836]
[1766246101879,0.01564,88241.0,88223.0,0.0113399]
[1766246102083,0.01564,88241.0,88226.0,0.0113396]
[1766246102693,0.01564,88241.0,88223.0,0.06104704]
[1766246103092,0.01564,88241.0,88223.0,0.07238684]
[1766246103286,0.01564,88241.0,88223.0,0.0113398]
[1766246103988,0.01564,88241.0,88222.0,0.08940704]
[1766246104384,0.0113378,88240.0,88223.0,0.02836]
[1766246106689,0.0113378,88240.0,88221.0,0.06104704]
[1766246106879,0.0113378,88240.0,88223.0,0.02836]
[1766246110404,0.01564,88241.0,88223.0,0.02836]
[1766246111404,0.22858953,88240.0,88221.0,0.06104704]
[1766246111600,0.011338,88239.0,88222.0,0.02124]
[1766246111796,0.011338,88239.0,88220.0,0.06104704]
[1766246111996,0.011338,88239.0,88222.0,0.02104]
[1766246121605,0.22860887,88240.0,88222.0,0.02104]
[1766246121808,0.0113385,88235.0,88222.0,0.02104]
[1766246123706,0.0113385,88235.0,88218.0,0.06104704]
[1766246142333,0.0113385,88235.0,88219.0,0.06104704]
[1766246147331,0.0113379,88239.0,88219.0,0.06104704]
[1766246147533,0.22860887,88240.0,88219.0,0.06104704]
[1766246147726,0.01564,88241.0,88220.0,0.06104704]
[1766246149238,0.01564,88241.0,88220.0,0.07238724]
[1766246149733,0.21683887,88240.0,88220.0,0.07238724]
[1766246152939,0.22859896,88240.0,88220.0,0.07238724]
[1766246153244,0.22859896,88240.0,88220.0,0.0113402]
[1766246153445,0.23993676,88240.0,88220.0,0.0113402]
[1766246155147,0.23993676,88240.0,88219.0,0.06104704]
[1766246155446,0.0113382,88237.0,88219.0,0.06104704]
[1766246161942,0.22859896,88240.0,88219.0,0.06104704]
[1766246162149,0.22859896,88240.0,88220.0,0.06104704]
[1766246162941,0.22859896,88240.0,88221.0,0.0113401]
[1766246163346,0.01564,88241.0,88221.0,0.07238714]
[1766246163553,0.25345042,88240.0,88221.0,0.0113401]
[1766246163845,0.22858298,88240.0,88221.0,0.0113401]
[1766246165549,0.22858298,88240.0,88221.0,0.07238714]
[1766246167553,0.22858298,88240.0,88221.0,0.0113401]
[1766246168354,0.01564,88241.0,88221.0,0.0113401]
[1766246168556,0.03620324,88240.0,88221.0,0.0113401]
[1766246168745,0.0113378,88240.0,88221.0,0.0113401]
[1766246169657,0.01564,88241.0,88221.0,0.0113401]
[1766246169846,0.02486557,88240.0,88221.0,0.0113401]
[1766246170051,0.01564,88241.0,88221.0,0.0113401]
[1766246170353,0.01564,88241.0,88221.0,0.07238714]
[1766246171257,0.01564,88241.0,88221.0,0.0113401]
[1766246171646,0.02486536,88240.0,88221.0,0.0113401]
[1766246171847,0.01564,88241.0,88221.0,0.0113401]
[1766246172160,0.02486569,88240.0,88221.0,0.0113401]
[1766246172349,0.01564,88241.0,88221.0,0.0113401]
[1766246172550,0.02486597,88240.0,88221.0,0.0113401]
[1766246172848,0.01564,88241.0,88221.0,0.0113401]
[1766246173048,0.02486588,88240.0,88221.0,0.0113401]
[1766246173249,0.01564,88241.0,88221.0,0.0113401]
[1766246173461,0.02486613,88240.0,88221.0,0.0113401]
[1766246173754,0.01564,88241.0,88221.0,0.0113401]
[1766246174054,0.02486613,88240.0,88221.0,0.0113401]
[1766246174265,0.01564,88241.0,88221.0,0.0113401]
[1766246174450,0.02486642,88240.0,88221.0,0.0113401]
[1766246174651,0.01564,88241.0,88221.0,0.0113401]
[1766246174854,0.02486642,88240.0,88221.0,0.0113401]
[1766246175045,0.01564,88241.0,88221.0,0.0113401]
[1766246175247,0.02486645,88240.0,88221.0,0.0113401]
[1766246175543,0.01564,88241.0,88221.0,0.0113401]
[1766246175748,0.02486687,88240.0,88221.0,0.0113401]
[1766246175948,0.01564,88241.0,88221.0,0.0113401]
[1766246176253,0.02486687,88240.0,88221.0,0.0113401]
[1766246176450,0.01564,88241.0,88221.0,0.0113401]
[1766246176751,0.02486738,88240.0,88221.0,0.0113401]
[1766246176950,0.01564,88241.0,88221.0,0.0113401]
[1766246177154,0.02486738,88240.0,88221.0,0.0113401]
[1766246177355,0.0269777,88241.0,88221.0,0.0113401]
[1766246177557,0.0248681,88240.0,88221.0,0.0113401]
[1766246177752,0.0269777,88241.0,88221.0,0.0113401]
[1766246177952,0.0248681,88240.0,88221.0,0.0113401]
[1766246178149,0.0269777,88241.0,88221.0,0.0113401]
[1766246178352,0.02486807,88240.0,88221.0,0.0113401]
[1766246178552,0.0269777,88241.0,88221.0,0.0113401]
[1766246178762,0.02486813,88240.0,88221.0,0.0113401]
[1766246179064,0.0269777,88241.0,88221.0,0.0113401]
[1766246179260,0.02486819,88240.0,88221.0,0.0113401]
[1766246179459,0.0269777,88241.0,88221.0,0.0113401]
[1766246179760,0.02486825,88240.0,88221.0,0.0113401]
[1766246179952,0.0269777,88241.0,88221.0,0.0113401]
[1766246180164,0.02486825,88240.0,88221.0,0.0113401]
[1766246180362,0.0269777,88241.0,88221.0,0.0113401]
[1766246180562,0.02486831,88240.0,88221.0,0.0113401]
[1766246180761,0.0269777,88241.0,88221.0,0.0113401]
[1766246181062,0.0248736,88240.0,88221.0,0.0113401]
[1766246181261,0.0269777,88241.0,88221.0,0.0113401]
[1766246181461,0.02487359,88240.0,88221.0,0.0113401]
[1766246181661,0.0269777,88241.0,88221.0,0.0113401]
[1766246181868,0.0248736,88240.0,88221.0,0.0113401]
[1766246182056,0.0269777,88241.0,88221.0,0.0113401]
[1766246182362,0.0248736,88240.0,88221.0,0.0113401]
[1766246182561,0.0269777,88241.0,88221.0,0.0113401]
[1766246182766,0.0248736,88240.0,88221.0,0.0113401]
[1766246182954,0.0269777,88241.0,88221.0,0.0113401]
[1766246183157,0.02487359,88240.0,88221.0,0.07238714]
[1766246183360,0.01564,88241.0,88221.0,0.07238714]
[1766246183664,0.02487337,88240.0,88221.0,0.07238714]
[1766246183864,0.01564,88241.0,88221.0,0.07238714]
[1766246184068,0.02487337,88240.0,88221.0,0.07238714]
[1766246184259,0.01564,88241.0,88221.0,0.07238714]
[1766246184461,0.02487342,88240.0,88221.0,0.07238714]
[1766246184765,0.01564,88241.0,88221.0,0.07238714]
[1766246184955,0.02487342,88240.0,88221.0,0.07238714]
[1766246185156,0.01564,88241.0,88221.0,0.07238714]
[1766246185356,0.02487337,88240.0,88221.0,0.07238714]
[1766246185665,0.01564,88241.0,88221.0,0.0113401]
[1766246185965,0.02487348,88240.0,88221.0,0.0113401]
[1766246186172,0.01564,88241.0,88221.0,0.0113401]
[1766246186362,0.02487365,88240.0,88221.0,0.0113401]
[1766246186563,0.01564,88241.0,88221.0,0.07238714]
[1766246186869,0.02487372,88240.0,88221.0,0.07238714]
[1766246187167,0.01564,88241.0,88221.0,0.07238714]
[1766246187368,0.02487389,88240.0,88221.0,0.07238714]
[1766246187667,0.01564,88241.0,88221.0,0.07238714]
[1766246187865,0.02487394,88240.0,88221.0,0.07238714]
[1766246188067,0.01564,88241.0,88221.0,0.07238714]
[1766246188267,0.02487389,88240.0,88221.0,0.07238714]
[1766246188466,0.01564,88241.0,88221.0,0.07238714]
[1766246188663,0.02487421,88240.0,88221.0,0.07238714]
[1766246188968,0.0113378,88240.0,88221.0,0.06104704]
[1766246189264,0.23993389,88240.0,88221.0,0.06104704]
[1766246190572,0.22859609,88231.0,88221.0,0.06104704]
[1766246190770,0.22859609,88231.0,88219.0,0.06104704]
[1766246194462,0.22859609,88231.0,88218.0,0.06104704]
[1766246194865,0.22859609,88231.0,88219.0,0.02836]
[1766246199076,0.02836,88236.0,88220.0,0.23993639]
[1766246199270,0.02836,88236.0,88220.0,0.30098343]
[1766246201671,0.02836,88236.0,88220.0,0.06104704]
[1766246201872,0.02836,88236.0,88220.0,0.22859609]
[1766246202467,0.02836,88236.0,88219.0,0.08940704]
[1766246203676,0.02836,88236.0,88220.0,0.06104704]
[1766246204474,0.02836,88236.0,88220.0,0.28964313]
[1766246205878,0.02836,88236.0,88220.0,0.30098333]
[1766246209080,0.22859609,88240.0,88223.0,0.0113399]
[1766246209378,0.22859609,88240.0,88224.0,0.02836]
[1766246220588,0.011338,88239.0,88224.0,0.02836]
[1766246220892,0.02836,88238.0,88224.0,0.02836]
[1766246256822,0.0113382,88237.0,88220.0,0.06104704]
[1766246257010,0.0113386,88234.0,88218.0,0.06104704]
[1766246257206,0.0113388,88232.0,88218.0,0.06104704]
[1766246257405,0.0113388,88232.0,88217.0,0.06104704]
[1766246258516,0.0113388,88232.0,88218.0,0.06104704]
[1766246259618,0.02836,88233.0,88218.0,0.06104704]
[1766246284231,0.02836,88233.0,88217.0,0.02836]
[1766246284232,0.02836,88233.0,88219.0,0.06104704]
[1766246285432,0.22861896,88230.0,88219.0,0.06104704]
[1766246294340,0.22861896,88230.0,88208.0,0.08159297]
[1766246294546,0.22861896,88230.0,88200.0,0.00326226]
[1766246294547,0.22861896,88220.0,88209.0,0.02836]
[1766246295140,0.02836,88226.0,88209.0,0.02836]
[1766246295446,0.02853005,88226.0,88209.0,0.02853005]
[1766246298951,0.02853005,88226.0,88209.0,0.03987175]
[1766246302352,0.02853005,88226.0,88210.0,0.22865754]
[1766246303059,0.02853005,88226.0,88209.0,0.03987175]
[1766246303243,0.02853005,88226.0,88210.0,0.22865754]
[1766246306650,0.02836,88238.0,88216.0,0.22865754]
[1766246306855,0.0113382,88237.0,88220.0,0.22865754]
[1766246307060,0.0113382,88237.0,88217.0,0.02836]
[1766246307254,0.16723754,88230.0,88217.0,0.02836]
[1766246307453,0.22865754,88230.0,88217.0,0.02836]
[1766246308456,0.0113382,88237.0,88217.0,0.02836]
[1766246308757,0.0113382,88237.0,88220.0,0.22865754]
[1766246309158,0.02836,88238.0,88220.0,0.22865754]
[1766246316268,0.02836,88238.0,88221.0,0.02836]
[1766246324393,0.02836,88238.0,88221.0,0.0397002]
[1766246334176,0.02836,88238.0,88221.0,0.02836]
[1766246336288,0.02527933,88237.0,88221.0,0.02836]
[1766246336488,0.02836,88238.0,88221.0,0.02836]
[1766246336791,0.02527934,88237.0,88221.0,0.02836]
[1766246337089,0.02836,88238.0,88221.0,0.02836]
[1766246337280,0.02527932,88237.0,88221.0,0.02836]
[1766246337480,0.02836,88238.0,88221.0,0.02836]
[1766246337788,0.02527969,88237.0,88221.0,0.02836]
[1766246337989,0.02836,88238.0,88221.0,0.02836]
[1766246338199,0.02527969,88237.0,88221.0,0.02836]
[1766246338390,0.02836,88238.0,88221.0,0.02836]
[1766246338590,0.02528039,88237.0,88221.0,0.02836]
[1766246338793,0.02836,88238.0,88221.0,0.02836]
[1766246338989,0.02528039,88237.0,88221.0,0.02836]
[1766246339182,0.02836,88238.0,88221.0,0.02836]
[1766246339382,0.02528048,88237.0,88221.0,0.02836]
[1766246339584,0.02836,88238.0,88221.0,0.02836]
[1766246339883,0.0252802,88237.0,88221.0,0.02836]
[1766246340192,0.02836,88238.0,88221.0,0.02836]
[1766246340391,0.02527906,88237.0,88221.0,0.02836]
[1766246340590,0.02836,88238.0,88221.0,0.02836]
[1766246340790,0.02527891,88237.0,88221.0,0.02836]
[1766246340991,0.02836,88238.0,88221.0,0.02836]
[1766246341289,0.02527885,88237.0,88221.0,0.02836]
[1766246341489,0.02836,88238.0,88221.0,0.02836]
[1766246341790,0.02527866,88237.0,88221.0,0.02836]
[1766246342090,0.02836,88238.0,88221.0,0.02836]
[1766246344893,0.0113382,88237.0,88221.0,0.02836]
[1766246345093,0.22859704,88231.0,88221.0,0.02836]
[1766246345298,0.22859704,88231.0,88221.0,0.02832]
[1766246345481,0.0113382,88237.0,88221.0,0.02832]
[1766246345882,0.0113385,88235.0,88210.0,0.0113416]
[1766246346090,0.2286308,88230.0,88212.0,0.0113413]
[1766246346302,0.2286308,88230.0,88213.0,0.0178]
[1766246346897,0.0113385,88235.0,88213.0,0.0178]
[1766246350604,0.2286308,88230.0,88213.0,0.0178]
[1766246352805,0.02836,88231.0,88213.0,0.0178]
[1766246354101,0.2286308,88230.0,88213.0,0.0178]
[1766246358202,0.02836,88231.0,88214.0,0.0113411]
[1766246359710,0.0113391,88230.0,88210.0,0.2286308]
[1766246359905,0.0113391,88230.0,88212.0,0.0397014]
[1766246360309,0.02836,88231.0,88212.0,0.0397014]
[1766246367715,0.02836,88231.0,88215.0,0.011341]
[1766246370325,0.2286308,88230.0,88212.0,0.02836]
[1766246371629,0.22865572,88230.0,88212.0,0.02836]
[1766246372018,0.23999482,88230.0,88212.0,0.02836]
[1766246376227,0.22865572,88230.0,88212.0,0.02836]
[1766246378318,0.0396989,88231.0,88212.0,0.02836]
[1766246383328,0.02836,88231.0,88212.0,0.02836]
[1766246384732,0.22865572,88230.0,88212.0,0.02836]
[1766246388535,0.0113403,88221.0,88202.0,0.08159297]
[1766246388740,0.02836,88220.0,88196.0,0.02376]
[1766246388936,0.0113405,88219.0,88197.0,0.0113432]
[1766246389738,0.00017005,88217.0,88199.0,0.00017005]
[1766246389936,0.00017005,88217.0,88200.0,0.0113429]
[1766246390342,0.00017005,88217.0,88200.0,0.23999862]
[1766246390728,0.00017005,88217.0,88203.0,0.0113425]
[1766246391236,0.00017005,88217.0,88206.0,0.0113421]
[1766246391441,5e-08,88217.0,88209.0,0.0113417]
[1766246391629,0.01960005,88222.0,88209.0,0.0113417]
[1766246392128,0.01956005,88222.0,88209.0,0.0113417]
[1766246392328,0.01956005,88222.0,88205.0,0.0113422]
[1766246394238,0.01956005,88222.0,88201.0,0.0113427]
[1766246396936,0.03090015,88222.0,88201.0,0.0113427]
[1766246399543,0.01956005,88222.0,88204.0,0.0113424]
[1766246399745,0.01956005,88222.0,88205.0,0.02836]
[1766246399939,0.01956005,88222.0,88206.0,0.0113421]
[1766246400446,0.01956005,88222.0,88205.0,0.02836]
[1766246400447,0.00878005,88222.0,88205.0,0.02836]
[1766246400754,5e-08,88222.0,88205.0,0.02836]
[1766246401568,0.00099999,88270.0,88205.0,0.02836]
[1766246401844,0.00099999,88270.0,88220.0,0.00017005]
[1766246402545,0.0113372,88245.0,88220.0,0.00017005]
[1766246402746,0.0113372,88245.0,88221.0,0.0113402]
[1766246403045,0.00352,88244.0,88221.0,0.0113402]
[1766246403246,0.0113372,88245.0,88221.0,0.0113402]
[1766246403442,0.02836,88243.0,88221.0,0.0113402]
[1766246403943,0.02836,88243.0,88220.0,0.00017005]
[1766246403944,0.0113366,88250.0,88220.0,0.00017005]
[1766246404139,1.44636,88259.0,88220.0,0.00017005]
[1766246404943,0.011335,88262.0,88221.0,1.44636]
[1766246405135,0.0113351,88261.0,88235.0,0.0113384]
[1766246405339,0.0113351,88261.0,88239.0,0.00016995]
[1766246406049,0.00352,88263.0,88240.0,0.0113378]
[1766246406257,0.00352,88263.0,88249.0,0.0113365]
[1766246406743,0.0284,88269.0,88248.0,0.0237367]
[1766246407846,0.0284,88269.0,88252.0,0.0113362]
[1766246410352,0.0113343,88268.0,88242.0,0.0113374]
[1766246410552,0.0113335,88274.0,88243.0,0.00356]
[1766246410938,0.00352,88282.0,88256.0,0.0113357]
[1766246411143,0.014852,88285.0,88260.0,0.01150505]
[1766246411444,0.00352,88285.0,88264.0,0.0113347]
[1766246412346,0.0113309,88294.0,88264.0,0.0113347]
[1766246412546,0.0113309,88294.0,88270.0,0.00016995]
[1766246412752,0.0113309,88294.0,88271.0,0.00348]
[1766246413754,0.0113309,88294.0,88280.0,0.22830419]
[1766246413956,0.0113309,88294.0,88271.0,0.00348]
[1766246414145,0.0113309,88294.0,88280.0,0.22830419]
[1766246414349,0.0148508,88295.0,88280.0,0.22830419]
[1766246415251,0.0113313,88291.0,88280.0,0.22830419]
[1766246415552,0.0113318,88287.0,88271.0,0.00348]
[1766246415750,0.22830419,88300.0,88248.0,0.0113367]
[1766246415954,0.0028,88299.0,88250.0,0.22830419]
[1766246416152,0.0113333,88276.0,88251.0,0.0284]
[1766246416447,0.0113333,88276.0,88260.0,0.22830419]
[1766246419356,0.0113333,88276.0,88259.0,0.02856995]
[1766246419558,0.0113333,88276.0,88260.0,0.22830419]
[1766246419957,0.0113338,88272.0,88260.0,0.22830419]
[1766246420156,0.01150272,88277.0,88260.0,0.22830419]
[1766246420455,0.011334,88270.0,88259.0,0.00016995]
[1766246420658,0.011334,88270.0,88260.0,0.22830419]
[1766246421257,0.011334,88270.0,88259.0,0.00016995]
[1766246421754,0.011334,88270.0,88260.0,0.22830419]
[1766246422161,0.011334,88270.0,88261.0,0.0284]
[1766246428264,0.0113333,88275.0,88261.0,0.0284]
[1766246428463,0.00016962,88277.0,88260.0,0.22830419]
[1766246428664,0.22830419,88270.0,88259.0,4e-08]
[1766246429055,0.23963819,88270.0,88259.0,4e-08]
[1766246430958,0.0113351,88261.0,88237.0,0.0113381]
[1766246431162,0.22830419,88260.0,88240.0,0.22830419]
[1766246431668,0.22830419,88260.0,88241.0,0.0284]
[1766246431966,0.01150535,88259.0,88242.0,0.00016995]
[1766246432163,0.0113358,88256.0,88242.0,0.00016995]
[1766246432370,0.0113358,88256.0,88242.0,0.02856995]
[1766246434370,0.00016995,88259.0,88224.0,0.00329399]
[1766246434371,0.22830419,88252.0,88225.0,0.0113396]
[1766246434566,0.22830419,88250.0,88230.0,0.22830419]
[1766246434963,0.0284,88255.0,88230.0,0.22830419]
[1766246435464,0.0284,88255.0,88234.0,0.00016995]
[1766246435769,0.0284,88255.0,88235.0,0.0284]
[1766246436170,0.011336,88254.0,88235.0,0.0284]
[1766246438969,0.22830419,88250.0,88234.0,0.00016995]
[1766246439173,0.0113371,88246.0,88234.0,0.00016995]
[1766246446878,0.0113375,88242.0,88228.0,0.00056]
[1766246447086,0.22856953,88240.0,88228.0,0.00056]
[1766246447281,0.22856953,88240.0,88220.0,0.22856953]
[1766246447481,0.22856953,88240.0,88225.0,0.0284]
[1766246447779,0.0113375,88242.0,88225.0,0.0284]